fUSD/lending_fUSD_20250618
["ID","MTS","AMOUNT","RATE_DAILY","PERIOD"]
[366475893,1750278640389,-3121.35208495,0.000175,2]
[366475894,1750278640401,-1087.1,0.000175,2]
[366475898,1750278642913,-4836.0,0.000175,2]
[366475899,1750278642974,-554.09,0.000175,2]
[366475900,1750278642986,-266131.48345795,0.000175,2]
[366475901,1750278642996,-181.6399229,0.00017559,2]
[366475902,1750278643006,-174.61663034,0.00017659,2]
[366475903,1750278643015,-269.63032939,0.00017659,2]
[366475904,1750278643024,-25403.9618269,0.0001766,2]
[366475905,1750278643034,-833.92080167,0.0001787,2]
[366475906,1750278643044,-678.95078193,0.000179,2]
[366475907,1750278643054,-300.0,0.00018137,2]
[366475908,1750278643064,-201.0,0.00018346,5]
[366475909,1750278643073,-3774.6969111,0.00018346,2]
[366475910,1750278643083,-4408.3786578,0.00018346,2]
[366475911,1750278643092,-666.0,0.00018491,2]
[366475912,1750278643102,-678.95078191,0.00018555,2]
[366475913,1750278643111,-300.0,0.00018573,2]
[366475914,1750278643121,-159.58573453,0.0001872,2]
[366475915,1750278643134,-1128.22350332,0.00018801,2]
[366475916,1750278643144,-13723.96367658,0.00018801,2]
[366475917,1750278643153,-426.43925741,0.00018802,2]
[366475918,1750278643187,-573.56074259,0.00018802,2]
[366475919,1750278643197,-28.67866918,0.00018802,2]
[366475924,1750278646070,-127.67133082,0.00018802,2]
[366475925,1750278646080,-163.2,0.00018802,2]
[366475926,1750278646090,-3381.86909385,0.00018802,2]
[366475930,1750278646211,-552.52763311,0.00018802,2]
[366475932,1750278646255,-19965.60327304,0.00018802,2]
[366475933,1750278646265,-538.57,0.0001882,2]
[366475934,1750278646275,-250.0,0.0001882,2]
[366475935,1750278646284,-610.0,0.00018875,2]
[366475936,1750278646293,-170.2,0.00018939,2]
[366475937,1750278646303,-207.4,0.00018976,2]
[366475938,1750278646313,-151.0,0.00018976,2]
[366475939,1750278646322,-1650.1716522,0.00019,2]
[366475940,1750278646331,-347.13508408,0.0001901,7]
[366475941,1750278646341,-151.0,0.00019178,2]
[366475942,1750278646350,-678.95078191,0.0001921,2]
[366475943,1750278646359,-3774.6969111,0.00019234,2]
[366475944,1750278646369,-4408.3786578,0.00019234,2]
[366475945,1750278646378,-201.0,0.00019338,7]
[366475946,1750278646387,-884.0,0.00019428,2]
[366475947,1750278646397,-13023.17289115,0.000195,2]
[366475948,1750278646406,-168.0,0.00019564,2]
[366475949,1750278646416,-235.248817,0.00019599,2]
[366475950,1750278646425,-156.587,0.00019726,2]
[366475951,1750278646435,-150.0,0.00019769,2]
[366475952,1750278646444,-150.0,0.00019785,2]
[366475953,1750278646455,-150.0,0.00019788,2]
[366475954,1750278646464,-300.0,0.000198,7]
[366475955,1750278646474,-200.0,0.0001984,2]
[366475956,1750278646483,-678.95078191,0.00019866,2]
[366475957,1750278646493,-565.104,0.00019899,2]
[366475958,1750278646503,-521.6,0.000199,2]
[366475959,1750278646512,-600.0,0.000199,7]
[366475960,1750278646522,-153.64747841,0.000199,2]
[366475961,1750278646533,-8091.5381,0.000199,2]
[366475962,1750278646542,-200.0,0.00019904,2]
[366475963,1750278646551,-200.0,0.00019904,2]
[366475964,1750278646561,-1664.66779731,0.0001994,2]
[366475965,1750278646570,-2717.6271,0.00019973,2]
[366475966,1750278646580,-222.60991863,0.00019973,2]
[366475967,1750278646589,-500.0,0.00019973,2]
[366475968,1750278646600,-500.0,0.00019973,2]
[366475969,1750278646613,-500.0,0.00019973,2]
[366475970,1750278646622,-150.37,0.0001999,2]
[366475971,1750278646631,-150.37,0.0001999,2]
[366475972,1750278646639,-150.37,0.0001999,2]
[366475973,1750278646648,-27922.43822949,0.00019996,2]
[366475974,1750278646658,-256.58274456,0.00019996,2]
[366475975,1750278646682,-23088.85960975,0.00019996,2]
[366475976,1750278646691,-151.0,0.00019996,2]
[366475977,1750278646701,-151.0,0.00019996,2]
[366475978,1750278646710,-151.0,0.00019996,2]
[366475979,1750278646720,-151.0,0.00019996,2]
[366475980,1750278646729,-701.6535363,0.00019996,2]
[366475981,1750278646740,-151.0,0.00019996,2]
[366475982,1750278646750,-5503.0961805,0.00019996,2]
[366475983,1750278646760,-151.0,0.00019996,2]
[366475984,1750278646770,-151.0,0.00019996,2]
[366475985,1750278646780,-151.0,0.00019996,2]
[366475986,1750278646789,-151.0,0.00019996,2]
[366475987,1750278646798,-249.563023,0.00019996,2]
[366475988,1750278646808,-224.902725,0.00019996,2]
[366475989,1750278646817,-224.902725,0.00019996,2]
[366475990,1750278646826,-485.1716738,0.00019996,2]
[366475991,1750278646836,-151.0,0.00019996,2]
[366475992,1750278646846,-151.0,0.00019996,2]
[366475993,1750278646855,-12711.3294692,0.00019996,2]
[366475994,1750278646864,-992.9626228,0.00019996,2]
[366475995,1750278646874,-151.0,0.00019996,2]
[366475996,1750278646884,-343.919424,0.00019996,2]
[366475997,1750278646893,-151.0,0.00019996,2]
[366475998,1750278646903,-151.0,0.00019996,2]
[366475999,1750278646912,-343.919424,0.00019996,2]
[366476000,1750278647175,-151.0,0.00019996,2]
[366476001,1750278647275,-36784.9507042,0.00019996,2]
[366476002,1750278647285,-154.234646,0.00019996,2]
[366476003,1750278647295,-151.0,0.00019996,2]
[366476004,1750278647304,-920.8287194,0.00019996,2]
[366476005,1750278647314,-151.0,0.00019996,2]
[366476006,1750278647323,-151.0,0.00019996,2]
[366476007,1750278647333,-9037.8813955,0.00019996,2]
[366476008,1750278647342,-666.0,0.00019999,2]
[366476009,1750278647352,-300.0,0.00019999,2]
[366476010,1750278647361,-300.0,0.00019999,2]
[366476011,1750278647371,-154.73,0.00019999,2]
[366476012,1750278647381,-150.0,0.00019999,2]
[366476013,1750278647391,-75290.37634109,0.0002,2]
[366476014,1750278647401,-3015.03264992,0.0002,2]
[366476015,1750278647410,-4470.14413091,0.0002,5]
[366476016,1750278647419,-10000.0,0.0002,3]
[366476017,1750278647428,-500.0,0.0002,2]
[366476018,1750278647438,-6066.14490012,0.0002,2]
[366476019,1750278647448,-362.45752676,0.0002,2]
[366476020,1750278647458,-376.43884078,0.0002,4]
[366476029,1750278808836,284.05,0.00013699,2]
[366476048,1750279194217,1277.0,0.0002465,120]
[366476051,1750279255498,205.0,0.0002465,120]
[366476085,1750279652989,150.0,0.000161,2]
[366476094,1750279832155,-201.0,0.0001633,2]
[366476095,1750279832165,-300.0,0.00016498,2]
[366476096,1750279832174,-456.70112046,0.00016498,2]
[366476097,1750279832186,-336.61583075,0.00016498,2]
[366476098,1750279832198,-406.68304879,0.00016498,2]
[366476099,1750279832208,-1559.6389,0.00016499,2]
[366476100,1750279832218,-303.47,0.00016499,2]
[366476101,1750279832227,-303.04,0.00016499,2]
[366476102,1750279832237,-303.45,0.00016499,2]
[366476103,1750279832246,-301.71,0.00016499,2]
[366476104,1750279832255,-302.88,0.00016499,2]
[366476105,1750279832265,-303.7,0.00016499,2]
[366476106,1750279832274,-302.64,0.00016499,2]
[366476107,1750279832283,-304.65,0.00016499,2]
[366476108,1750279832292,-201.0,0.00017395,3]
[366476109,1750279832302,-250.0,0.00018391,2]
[366476110,1750279832311,-784.57,0.00018391,2]
[366476111,1750279832321,-201.0,0.0001846,4]
[366476112,1750279832331,-300.0,0.00018657,2]
[366476113,1750279832340,-23900.0,0.00018658,2]
[366476114,1750279832350,-6531.77,0.00018802,2]
[366476115,1750279832359,-666.0,0.00018837,2]
[366476116,1750279832370,-168.0,0.00018856,2]
[366476117,1750279832380,-1000.0,0.00018927,2]
[366476119,1750279832390,-481.07,0.00019049,2]
[366476121,1750279832399,-247.81,0.00019059,2]
[366476123,1750279832409,-151.0,0.00019178,2]
[366476125,1750279832419,-1957.856,0.00019188,2]
[366476127,1750279832428,-207.4,0.00019188,2]
[366476130,1750279832438,-2000.0,0.000192,2]
[366476132,1750279832448,-2030.296672,0.00019243,2]
[366476134,1750279832457,-166.91,0.00019269,2]
[366476135,1750279832466,-2105.41764886,0.00019298,2]
[366476137,1750279832476,-582.46778311,0.00019353,2]
[366476138,1750279832486,-1356.34,0.00019508,2]
[366476140,1750279832497,-461.73,0.00019508,2]
[366476142,1750279832506,-461.73,0.00019508,2]
[366476144,1750279832520,-730.81,0.00019508,2]
[366476146,1750279832529,-201.0,0.00019525,6]
[366476148,1750279832539,-205.842715,0.00019599,2]
[366476150,1750279832548,-168.0,0.00019719,2]
[366476152,1750279832559,-156.587,0.00019726,2]
[366476154,1750279832568,-168.0,0.00019728,2]
[366476156,1750279832577,-3954.7628,0.000198,2]
[366476158,1750279832587,-2084.4297,0.000198,2]
[366476160,1750279832597,-2642.28783777,0.000198,2]
[366476163,1750279832607,-300.0,0.000198,7]
[366476165,1750279832616,-200.0,0.00019839,2]
[366476167,1750279832625,-200.0,0.0001984,2]
[366476169,1750279832635,-151.0,0.00019888,2]
[366476171,1750279832644,-151.0,0.00019888,2]
[366476173,1750279832653,-151.0,0.00019888,2]
[366476175,1750279832663,-300.0,0.00019888,2]
[366476177,1750279832672,-500.0,0.00019888,2]
[366476179,1750279832681,-300.0,0.00019888,2]
[366476181,1750279832691,-500.0,0.00019888,2]
[366476183,1750279832700,-500.0,0.00019888,2]
[366476185,1750279832709,-300.0,0.00019888,2]
[366476187,1750279832718,-500.0,0.00019888,2]
[366476189,1750279832728,-500.0,0.00019888,2]
[366476191,1750279832739,-300.0,0.00019888,2]
[366476193,1750279832749,-500.0,0.00019888,2]
[366476195,1750279832758,-500.0,0.00019888,2]
[366476197,1750279832768,-300.0,0.00019888,2]
[366476199,1750279832778,-500.0,0.00019888,2]
[366476201,1750279832787,-500.0,0.00019888,2]
[366476203,1750279832796,-300.0,0.00019888,2]
[366476205,1750279832806,-500.0,0.00019888,2]
[366476207,1750279832815,-500.0,0.00019888,2]
[366476209,1750279832824,-300.0,0.00019888,2]
[366476211,1750279832834,-500.0,0.00019888,2]
[366476213,1750279832843,-300.0,0.00019888,2]
[366476215,1750279832852,-500.0,0.00019888,2]
[366476217,1750279832861,-500.0,0.00019888,2]
[366476219,1750279832870,-300.0,0.00019888,2]
[366476221,1750279832880,-500.0,0.00019888,2]
[366476222,1750279832889,-500.0,0.00019888,2]
[366476224,1750279832899,-500.0,0.00019888,2]
[366476226,1750279832909,-300.0,0.00019888,2]
[366476228,1750279832918,-500.0,0.00019888,2]
[366476230,1750279832927,-500.0,0.00019888,2]
[366476232,1750279832937,-500.0,0.00019888,2]
[366476234,1750279832947,-300.0,0.00019888,2]
[366476236,1750279832957,-500.0,0.00019888,2]
[366476238,1750279832966,-500.0,0.00019888,2]
[366476240,1750279832976,-300.0,0.00019888,2]
[366476242,1750279832985,-500.0,0.00019888,2]
[366476244,1750279832996,-500.0,0.00019888,2]
[366476246,1750279833006,-300.0,0.00019888,2]
[366476248,1750279833016,-500.0,0.00019888,2]
[366476250,1750279833026,-300.0,0.00019888,2]
[366476252,1750279833036,-500.0,0.00019888,2]
[366476254,1750279833046,-300.0,0.00019888,2]
[366476256,1750279833056,-500.0,0.00019888,2]
[366476258,1750279833067,-500.0,0.00019888,2]
[366476260,1750279833076,-151.0,0.00019888,2]
[366476263,1750279833087,-367.85144471,0.00019888,2]
[366476264,1750279833096,-151.0,0.00019888,2]
[366476266,1750279833106,-151.0,0.00019888,2]
[366476268,1750279833115,-151.0,0.00019888,2]
[366476270,1750279833125,-257.46242383,0.00019888,2]
[366476272,1750279833135,-181.93239056,0.00019892,2]
[366476274,1750279833145,-3484.83571775,0.00019892,2]
[366476276,1750279833155,-1000.0,0.00019896,2]
[366476278,1750279833165,-452.084,0.00019899,2]
[366476280,1750279833175,-45262.3713,0.000199,2]
[366476282,1750279833185,-700.0,0.000199,7]
[366476284,1750279833195,-23248.0,0.000199,2]
[366476286,1750279833205,-658.75734481,0.000199,2]
[366476288,1750279833215,-151.0,0.00019943,2]
[366476290,1750279833225,-501.58829197,0.00019973,2]
[366476292,1750279833234,-500.0,0.00019973,2]
[366476294,1750279833245,-500.0,0.00019973,2]
[366476296,1750279833255,-500.0,0.00019973,2]
[366476298,1750279833264,-500.27355599,0.00019973,2]
[366476300,1750279833274,-833.92080167,0.00019982,2]
[366476302,1750279833283,-150.0,0.00019988,2]
[366476304,1750279833293,-150.37,0.0001999,2]
[366476306,1750279833302,-170.66987092,0.0001999,2]
[366476308,1750279833312,-150.37,0.0001999,2]
[366476309,1750279833321,-76639.128992,0.00019992,2]
[366476311,1750279833331,-1074.7364935,0.00019992,2]
[366476313,1750279833341,-39088.4964436,0.00019992,2]
[366476315,1750279833351,-18098.1061564,0.00019992,2]
[366476316,1750279833360,-692.0504431,0.00019992,2]
[366476317,1750279833370,-1373.7428875,0.00019992,2]
[366476318,1750279833379,-462.4534671,0.00019992,2]
[366476319,1750279833389,-723.8822163,0.00019992,2]
[366476320,1750279833398,-152.4466514,0.00019992,2]
[366476321,1750279833408,-151.0,0.00019996,2]
[366476322,1750279833417,-151.0,0.00019996,2]
[366476323,1750279833427,-151.0,0.00019996,2]
[366476324,1750279833436,-300.0,0.00019999,2]
[366476325,1750279833445,-300.0,0.00019999,2]
[366476326,1750279833455,-150.0,0.00019999,2]
[366476327,1750279833464,-188.74123057,0.00019999,2]
[366476328,1750279833474,-286.81865113,0.00019999,2]
[366476329,1750279833483,-6861.98183829,0.0002,2]
[366476330,1750279833494,-564.11175166,0.0002,2]
[366476331,1750279833504,-7923.56115922,0.0002,4]
[366476332,1750279833515,-157248.16742743,0.0002,4]
[366476333,1750279833525,-915.0,0.0002,6]
[366476334,1750279833535,-853.03019851,0.0002,2]
[366476335,1750279833546,-1420.34243842,0.0002,5]
[366476336,1750279833557,-20000.0,0.0002,2]
[366476337,1750279833566,-878.04307428,0.0002,2]
[366476338,1750279833575,-925.29070772,0.0002,5]
[366476339,1750279833585,-1000.0,0.0002,2]
[366476340,1750279833597,-1000.0,0.0002,2]
[366476341,1750279833607,-1000.0,0.0002,2]
[366476342,1750279833616,-1000.0,0.0002,2]
[366476343,1750279833626,-1000.0,0.0002,2]
[366476344,1750279833636,-1000.0,0.0002,2]
[366476345,1750279833651,-1000.0,0.0002,2]
[366476346,1750279833663,-1000.0,0.0002,2]
[366476347,1750279833678,-1000.0,0.0002,2]
[366476348,1750279833692,-1000.0,0.0002,2]
[366476349,1750279833706,-1000.0,0.0002,2]
[366476350,1750279833721,-1000.0,0.0002,2]
[366476351,1750279833731,-1000.0,0.0002,2]
[366476352,1750279833744,-1000.0,0.0002,2]
[366476353,1750279833755,-1000.0,0.0002,2]
[366476354,1750279833765,-1000.0,0.0002,2]
[366476355,1750279833779,-1000.0,0.0002,2]
[366476356,1750279833790,-1000.0,0.0002,2]
[366476357,1750279833802,-1000.0,0.0002,2]
[366476358,1750279833814,-1000.0,0.0002,2]
[366476359,1750279833827,-1000.0,0.0002,2]
[366476360,1750279833838,-1000.0,0.0002,2]
[366476361,1750279833847,-1000.0,0.0002,2]
[366476362,1750279833857,-1000.0,0.0002,2]
[366476363,1750279833870,-1000.0,0.0002,2]
[366476364,1750279833882,-1000.0,0.0002,2]
[366476365,1750279833893,-1000.0,0.0002,2]
[366476366,1750279833907,-1000.0,0.0002,2]
[366476367,1750279833916,-1000.0,0.0002,2]
[366476368,1750279833926,-1000.0,0.0002,2]
[366476369,1750279833935,-1000.0,0.0002,2]
[366476370,1750279833944,-1000.0,0.0002,2]
[366476371,1750279833954,-215.73,0.0002,2]
[366476372,1750279833964,-35000.0,0.0002,5]
[366476373,1750279833973,-159.828,0.0002,2]
[366476374,1750279833983,-162.47200488,0.0002,4]
[366476375,1750279833994,-10000.0,0.0002,2]
[366476376,1750279834004,-172.95693953,0.0002,5]
[366476377,1750279834015,-1067.0,0.0002,21]
[366476378,1750279834030,-286014.73977014,0.0002,2]
[366476379,1750279834040,-210.99,0.0002,2]
[366476380,1750279834050,-9518.40762,0.0002,2]
[366476381,1750279834059,-16416.9,0.0002,2]
[366476382,1750279834070,-18176.657403,0.0002,2]
[366476383,1750279834080,-576.67709535,0.0002,3]
[366476384,1750279834090,-26330.0,0.0002,2]
[366476385,1750279834099,-921.84,0.0002,2]
[366476386,1750279834110,-2000.0,0.0002,2]
[366476387,1750279834120,-1163.17777857,0.0002,2]
[366476388,1750279834130,-504369.15282328,0.0002,2]
[366476389,1750279834139,-151.0,0.0002,2]
[366476390,1750279834152,-4135.6018139,0.0002,2]
[366476391,1750279834163,-17848.63076161,0.0002,2]
[366476392,1750279834174,-224.566808,0.0002,2]
[366476393,1750279834184,-6819.66173312,0.0002,2]
[366476394,1750279834194,-151.0,0.0002,2]
[366476395,1750279834204,-151.0,0.0002,2]
[366476396,1750279834214,-151.0,0.0002,2]
[366476397,1750279834223,-151.0,0.0002,2]
[366476398,1750279834233,-151.0,0.0002,2]
[366476399,1750279834244,-151.0,0.0002,2]
[366476400,1750279834254,-151.0,0.0002,2]
[366476401,1750279834264,-151.0,0.0002,2]
[366476402,1750279834274,-151.0,0.0002,2]
[366476403,1750279834284,-151.0,0.0002,2]
[366476404,1750279834293,-151.0,0.0002,2]
[366476405,1750279834303,-151.0,0.0002,2]
[366476406,1750279834312,-153.422241,0.0002,2]
[366476407,1750279834322,-151.0,0.0002,2]
[366476408,1750279834332,-151.0,0.0002,2]
[366476409,1750279834342,-151.0,0.0002,2]
[366476410,1750279834351,-151.0,0.0002,2]
[366476411,1750279834361,-151.0,0.0002,2]
[366476412,1750279834371,-151.0,0.0002,2]
[366476413,1750279834380,-151.0,0.0002,2]
[366476414,1750279834390,-151.0,0.0002,2]
[366476415,1750279834399,-151.0,0.0002,2]
[366476416,1750279834408,-151.0,0.0002,2]
[366476417,1750279834417,-151.0,0.0002,2]
[366476418,1750279834427,-151.809498,0.0002,2]
[366476419,1750279834437,-151.0,0.0002,2]
[366476420,1750279834447,-151.0,0.0002,2]
[366476421,1750279834456,-151.0,0.0002,2]
[366476422,1750279834724,-151.0,0.0002,2]
[366476423,1750279834758,-151.0,0.0002,2]
[366476424,1750279834768,-151.0,0.0002,2]
[366476425,1750279834778,-151.0,0.0002,2]
[366476426,1750279834788,-151.0,0.0002,2]
[366476427,1750279834798,-151.0,0.0002,2]
[366476428,1750279834808,-151.0,0.0002,2]
[366476429,1750279834817,-151.0,0.0002,2]
[366476430,1750279834827,-151.0,0.0002,2]
[366476431,1750279834836,-151.0,0.0002,2]
[366476432,1750279834846,-151.0,0.0002,2]
[366476433,1750279834855,-151.0,0.0002,2]
[366476434,1750279834865,-151.0,0.0002,2]
[366476435,1750279834874,-151.0,0.0002,2]
[366476436,1750279834884,-151.0,0.0002,2]
[366476437,1750279834893,-151.0,0.0002,2]
[366476438,1750279834903,-151.0,0.0002,2]
[366476439,1750279834913,-151.0,0.0002,2]
[366476440,1750279834923,-151.0,0.0002,2]
[366476441,1750279834932,-151.0,0.0002,2]
[366476442,1750279834943,-151.0,0.0002,2]
[366476443,1750279834953,-151.0,0.0002,2]
[366476444,1750279834963,-247.0,0.0002,2]
[366476445,1750279834974,-247.0,0.0002,2]
[366476446,1750279834983,-247.0,0.0002,2]
[366476447,1750279834993,-247.0,0.0002,2]
[366476448,1750279835003,-151.0,0.0002,2]
[366476449,1750279835013,-151.0,0.0002,2]
[366476450,1750279835023,-151.0,0.0002,2]
[366476451,1750279835032,-218.770736,0.0002,2]
[366476452,1750279835042,-151.0,0.0002,2]
[366476453,1750279835052,-151.0,0.0002,2]
[366476454,1750279835061,-151.0,0.0002,2]
[366476455,1750279835071,-151.0,0.0002,2]
[366476456,1750279835080,-151.0,0.0002,2]
[366476457,1750279835090,-151.0,0.0002,2]
[366476458,1750279835100,-246.286976,0.0002,2]
[366476459,1750279835110,-180.919522,0.0002,2]
[366476460,1750279835119,-151.0,0.0002,2]
[366476461,1750279835129,-151.0,0.0002,2]
[366476462,1750279835139,-151.0,0.0002,2]
[366476463,1750279835149,-151.0,0.0002,2]
[366476464,1750279835158,-151.0,0.0002,2]
[366476465,1750279835168,-151.0,0.0002,2]
[366476466,1750279835178,-151.0,0.0002,2]
[366476467,1750279835187,-151.0,0.0002,2]
[366476468,1750279835197,-151.0,0.0002,2]
[366476469,1750279835207,-253.533884,0.0002,2]
[366476470,1750279835216,-151.0,0.0002,2]
[366476471,1750279835226,-151.0,0.0002,2]
[366476472,1750279835236,-151.0,0.0002,2]
[366476473,1750279835246,-151.0,0.0002,2]
[366476474,1750279835255,-171.321142,0.0002,2]
[366476475,1750279835264,-151.0,0.0002,2]
[366476476,1750279835274,-151.0,0.0002,2]
[366476477,1750279835283,-151.0,0.0002,2]
[366476478,1750279835293,-151.0,0.0002,2]
[366476479,1750279835302,-151.0,0.0002,2]
[366476480,1750279835312,-151.0,0.0002,2]
[366476481,1750279835322,-151.0,0.0002,2]
[366476482,1750279835332,-151.0,0.0002,2]
[366476483,1750279835341,-151.0,0.0002,2]
[366476484,1750279835350,-151.0,0.0002,2]
[366476485,1750279835360,-151.0,0.0002,2]
[366476486,1750279835370,-151.0,0.0002,2]
[366476487,1750279835379,-600.0,0.0002,4]
[366476488,1750279835390,-246.641295,0.0002,2]
[366476489,1750279835399,-299.2658415,0.0002,2]
[366476490,1750279835409,-246.641295,0.0002,2]
[366476491,1750279835418,-246.641295,0.0002,2]
[366476492,1750279835428,-246.641295,0.0002,2]
[366476493,1750279835437,-201.7241585,0.0002,4]
[366476494,1750279835446,-246.641295,0.0002,2]
[366476495,1750279835456,-246.641295,0.0002,2]
[366476496,1750279835466,-358.40935926,0.0002,2]
[366476497,1750279835476,-246.641295,0.0002,2]
[366476498,1750279835485,-151.0,0.0002,2]
[366476499,1750279835496,-246.641295,0.0002,2]
[366476500,1750279835505,-241.59064074,0.0002,4]
[366476501,1750279835515,-251.0813,0.0002,2]
[366476502,1750279835528,-246.641295,0.0002,2]
[366476503,1750279835538,-246.641295,0.0002,2]
[366476504,1750279835547,-358.40935926,0.0002,2]
[366476505,1750279835556,-246.641295,0.0002,2]
[366476506,1750279835566,-246.641295,0.0002,2]
[366476507,1750279835575,-241.59064074,0.0002,4]
[366476508,1750279835585,-299.2658415,0.0002,2]
[366476509,1750279835595,-201.7241585,0.0002,4]
[366476510,1750279835605,-151.0,0.0002,2]
[366476511,1750279835615,-151.0,0.0002,2]
[366476512,1750279835624,-151.0,0.0002,2]
[366476513,1750279835634,-256.504635,0.0002,2]
[366476514,1750279835643,-358.40935926,0.0002,2]
[366476515,1750279835652,-241.59064074,0.0002,4]
[366476516,1750279835661,-358.40935926,0.0002,2]
[366476517,1750279835671,-241.59064074,0.0002,4]
[366476518,1750279835681,-299.2658415,0.0002,2]
[366476519,1750279835690,-151.0,0.0002,2]
[366476520,1750279835698,-151.0,0.0002,2]
[366476521,1750279835707,-201.7241585,0.0002,4]
[366476522,1750279835716,-151.0,0.0002,2]
[366476523,1750279835725,-151.0,0.0002,2]
[366476524,1750279835735,-151.0,0.0002,2]
[366476525,1750279835745,-151.0,0.0002,2]
[366476526,1750279835753,-358.40935926,0.0002,2]
[366476527,1750279835761,-241.59064074,0.0002,4]
[366476528,1750279835770,-151.0,0.0002,2]
[366476529,1750279835779,-151.0,0.0002,2]
[366476530,1750279835789,-151.0,0.0002,2]
[366476531,1750279835797,-358.40935926,0.0002,2]
[366476532,1750279835804,-151.0,0.0002,2]
[366476533,1750279835811,-151.0,0.0002,2]
[366476534,1750279835820,-151.0,0.0002,2]
[366476535,1750279835830,-241.59064074,0.0002,4]
[366476536,1750279835839,-299.2658415,0.0002,2]
[366476537,1750279835848,-201.7241585,0.0002,4]
[366476538,1750279835858,-358.40935926,0.0002,2]
[366476539,1750279835867,-241.59064074,0.0002,4]
[366476540,1750279835877,-358.40935926,0.0002,2]
[366476541,1750279835887,-241.59064074,0.0002,4]
[366476542,1750279835896,-299.2658415,0.0002,2]
[366476543,1750279835906,-201.7241585,0.0002,4]
[366476544,1750279835915,-358.40935926,0.0002,2]
[366476545,1750279835925,-241.59064074,0.0002,4]
[366476546,1750279835934,-358.40935926,0.0002,2]
[366476547,1750279835945,-241.59064074,0.0002,4]
[366476548,1750279835955,-299.2658415,0.0002,2]
[366476549,1750279835964,-201.7241585,0.0002,4]
[366476550,1750279835973,-358.40935926,0.0002,2]
[366476551,1750279835983,-241.59064074,0.0002,4]
[366476552,1750279835992,-358.40935926,0.0002,2]
[366476553,1750279836002,-241.59064074,0.0002,4]
[366476554,1750279836011,-299.2658415,0.0002,2]
[366476555,1750279836020,-201.7241585,0.0002,4]
[366476556,1750279836029,-151.0,0.0002,2]
[366476557,1750279836038,-274.775132,0.0002,2]
[366476558,1750279836048,-358.40935926,0.0002,2]
[366476559,1750279836057,-241.59064074,0.0002,4]
[366476560,1750279836067,-358.40935926,0.0002,2]
[366476561,1750279836078,-241.59064074,0.0002,4]
[366476562,1750279836088,-299.2658415,0.0002,2]
[366476563,1750279836097,-201.7241585,0.0002,4]
[366476564,1750279836107,-358.40935926,0.0002,2]
[366476565,1750279836119,-241.59064074,0.0002,4]
[366476566,1750279836132,-358.40935926,0.0002,2]
[366476567,1750279836141,-241.59064074,0.0002,4]
[366476568,1750279836151,-299.39686105,0.0002,2]
[366476569,1750279836161,-201.81247399,0.0002,4]
[366476570,1750279836171,-224.171281,0.0002,2]